Cogmind - Beta 16.1 @@@ ROGUE MODE // 2026.02.22 @ 14:35:26 Player: Zish Result: Destroyed by OM-Y4H(R) with Subdweller Laser Performance ------------- Evolutions (0) 0 Regions Visited (2) 400 Robots Destroyed (22) 110 Value Destroyed (623) 623 Prototype IDs (0) 0 Alien Tech Used (0) 0 Bonus (0) 0 TOTAL SCORE: 1133 Bonus ------- None Cogmind --------- Core Integrity 0/250 Matter 296/300 Energy 100/100 System Corruption 0% Temperature Cool (6) Movement Core (1350) Ox26 Location -10/Subcaves Parts ------- > --- POWER (1) -------- (None) > --- PROPULSION (2) --- (None) > --- UTILITY (2) ------ Huge Storage Unit > --- WEAPON (2) ------- (None) > --- INVENTORY (25) --- Cooling System Signal Interpreter Assault Rifle Light Assault Rifle Light Assault Rifle Grenade Launcher Peak State ------------ > --- POWER ------------ Light Nuclear Core > --- PROPULSION ------- Light Treads Light Treads > --- UTILITY ---------- Cooling System Small Storage Unit > --- WEAPON ----------- Assault Rifle Autogun > --- INVENTORY -------- Light Ion Engine Cooling System Autogun Autogun Autogun Grenade Launcher [Rating: 12] Favorites ----------- Power Light Ion Engine Engine Light Ion Engine Power Core Light Nuclear Core Propulsion Light Treads Treads Light Treads Wheel Subdweller Monowheel Utility Cooling System Device Cooling System Storage Huge Storage Unit Weapon Light Cannon Energy Gun Medium Laser Ballistic Gun Assault Rifle Ballistic Cannon Light Cannon Build | -11 -10 -10 ------- Run | Yrd Mat Sub Slots Evolved . | . . . Power . | . . . Propulsion . | . . . Utility . | . . . Weapon . | . . . Parts Attached 17 | 6 7 4 Power 4 | 1 2 1 Engine 3 | 1 1 1 Core 1 | . 1 . Reactor . | . . . Propulsion 5 | 2 . 3 Treads 2 | 2 . . Leg . | . . . Wheel 3 | . . 3 Hover . | . . . Flight . | . . . Utility 3 | 1 2 . Device 1 | . 1 . Storage 2 | 1 1 . Processor . | . . . Hackware . | . . . Protection . | . . . Artifact . | . . . Weapon 5 | 2 3 . Energy Gun 1 | 1 . . Energy Cannon . | . . . Ballistic Gun 2 | 1 1 . Ballistic Cannon 2 | . 2 . Launcher . | . . . Special Weapon . | . . . Impact Weapon . | . . . Slashing Weapon . | . . . Piercing Weapon . | . . . Special Melee Weapon . | . . . Unidentified Prototypes . | . . . Parts Lost 9 | . 3 6 Power 4 | . 2 2 Propulsion 2 | . 1 1 Utility 1 | . . 1 Weapon 2 | . . 2 Highest Loss Streak 5 | . 2 5 To Critical Strikes . | . . . Average Backups 6 | . 6 7 Power . | . . 1 Propulsion . | . . . Utility 1 | . 1 2 Weapon 3 | . 4 4 Tool/Special . | . . . Unused Backups 10 | . 4 6 Power 1 | . . 1 Propulsion . | . . . Utility 2 | . . 2 Weapon 7 | . 4 3 Tool/Special . | . . . Average Slot Usage (%) 90 | . 97 82 Engine 7 | . 2 13 Core 6 | . 11 . Treads 16 | . 26 4 Wheel 3 | . . 7 Device 13 | . 13 14 Storage 14 | . 14 14 Ballistic Gun 12 | . 22 . Ballistic Cannon 14 | . 4 27 Peak Build Rating 12 | 6 12 11 Average Rating 9 | 4 11 7 On Entrance 4 | . 6 7 Avg Prop Armor Cover (%) 4 | . . 4 Naked Turns . | . . . Heaviest Build 93 | 12 93 91 Greatest Support 40 | 40 40 40 Greatest Overweight (x) 30 | . 4 30 Average Overweight (x) 3 | . 1 4 Largest Inventory Capacity 25 | 8 25 25 Average Capacity 23 | 6 23 25 Most Carried 10 | 2 9 10 Average Carried 6 | 1 6 7 Final Capacity 25 | 8 25 25 Final Carried 7 | 2 7 6 Class Distribution -------------------- 100% | Mutant Dominant Class ---------------- Mutant | -10/Materials Mutant | -10/Subcaves Resources | -11 -10 -10 ----------- Run | Yrd Mat Sub Matter Collected 914 | 260 410 244 Remotely . | . . . Salvage Created 635 | . 511 124 Parts 48 | . 39 9 Haulers Intercepted 1 | . 1 . Recyclers Shooed 1 | . 1 . Parts Field Recycled . | . . . Retrieved Matter . | . . . Parts Self-Destructed . | . . . Prevented . | . . . Parts Restored . | . . . Kills | -11 -10 -10 ------- Run | Yrd Mat Sub Combat Hostiles Destroyed 17 | . 12 5 Guns 9 | . 9 . Cannons 8 | . 3 5 Classes Destroyed 8 | . 6 2 Builder 1 | . 1 . Tunneler 1 | . 1 . Hauler 1 | . 1 . Watcher 2 | . 2 . Swarmer 3 | . 3 . Grunt 9 | . 9 . Sentry 1 | . . 1 Subdweller 4 | . . 4 Best Kill Streak 3 | . 3 2 Combat Bots Only 3 | . 3 2 Max Kills in Single Turn 2 | . 2 1 Gunslinging 1 | . 1 . Exploded . | . . . Melee . | . . . Uniques/NPCs Destroyed . | . . . Combat | -11 -10 -10 -------- Run | Yrd Mat Sub Hostile Shots Fired 139 | . 86 53 Missed 46 | . 29 17 Hits 93 | . 57 36 Projectile 93 | . 57 36 Damage Taken 1264 | . 589 675 Core 271 | . 66 205 Absorbed by Shields . | . . . Core Remaining (%) 100 | 100 . . Volleys Fired 80 | . 64 16 Largest 2 | . 2 2 Hottest 60 | . 60 60 Shots Fired 160 | . 128 32 Gun 114 | . 114 . Cannon 46 | . 14 32 Launcher . | . . . Special . | . . . Kinetic 160 | . 128 32 Thermal . | . . . Explosive . | . . . Electromagnetic . | . . . Robot Hit Streak 15 | . 15 6 Robot Miss Streak 3 | . 3 2 Penetration Max . | . . . Secondary Targets 2 | . 2 . Max Gunslinging Chain 1 | . 1 . Shots Hit Robots 110 | . 87 23 Core Hits 35 | . 27 8 Critical Kills . | . . . Critical Parts Destroyed . | . . . Critical Strikes 3 | . 1 2 Blast 3 | . 1 2 Melee Attacks . | . . . Impact . | . . . Slashing . | . . . Piercing . | . . . Sneak Attacks . | . . . Combat Hostiles . | . . . Follow-up Attacks . | . . . Damage Inflicted 1625 | . 1235 390 Guns 1089 | . 1089 . Cannons 536 | . 146 390 Explosions . | . . . Melee . | . . . Ramming . | . . . Kinetic 1625 | . 1235 390 Thermal . | . . . Explosive . | . . . Electromagnetic . | . . . Impact . | . . . Slashing . | . . . Piercing . | . . . Highest Corruption . | . . . Average Corruption . | . . . Corruption Purged . | . . . Corruption Blocked . | . . . Overload Shots . | . . . Overflow Damage 3 | . . 3 Projectiles 3 | . . 3 Explosions . | . . . Melee . | . . . Knockbacks 4 | . 3 1 Impact . | . . . Kinetic 4 | . 3 1 Secondary . | . . . Self-Inflicted Damage . | . . . Shots . | . . . Rammed . | . . . Targets Rammed . | . . . Kicked . | . . . Crushed . | . . . Highest Temperature . | . . . Average Temperature . | . . . Received Heat Transfer 426 | . 231 195 Siege Activations . | . . . Martial Activations . | . . . Shielding Activations . | . . . Robots Disrupted . | . . . Combat Hostiles . | . . . Robots Corrupted . | . . . Combat Hostiles . | . . . Parts Fried . | . . . Impact Corruptions . | . . . Robots Melted . | . . . Combat Hostiles . | . . . Parts Melted . | . . . Heat Transferred . | . . . Parts Sabotaged . | . . . Parts Stolen . | . . . Parts Stripped . | . . . Power Chain Reactions . | . . . Alert | -11 -10 -10 ------- Run | Yrd Mat Sub Maximum Alert Level . | . . . Low Security (%) 100 | 100 100 . Level 1 . | . . . Level 2 . | . . . Level 3 . | . . . Level 4 . | . . . Level 5 . | . . . High Security . | . . . Max Security . | . . . Peak Influence 72 | . 72 . Initial . | . . . Average 17 | . 18 . Influence Increases 365 | . 345 20 Destroy 0b10 Robot/C 260 | . 240 20 Destroy 0b10 Robot/NC 25 | . 25 . Destroy Leader 56 | . 56 . Successful Hack 7 | . 7 . Disable Machine 15 | . 15 . Destroy Structure 2 | . 2 . Influence Decreases 365 | . 309 56 Entered New Map 18 | . . 18 Time Decay 327 | . 289 38 Lost Part 20 | . 20 . Squads Dispatched 2 | . 2 . Investigation 2 | . 2 . Extermination . | . . . Reinforcement . | . . . Assault . | . . . Garrison . | . . . Intercept . | . . . Searches Triggered . | . . . Construction Impeded . | . . . Haulers Reinforced . | . . . Active Scanning Responses . | . . . Cargo Convoy Interrupts . | . . . Stealth | -11 -10 -10 --------- Run | Yrd Mat Sub Distress Signals . | . . . Communications Jammed . | . . . Distress Signals . | . . . Times Spotted 23 | . 17 6 Peak Tracking Total 3 | . 3 2 Tactical Retreats . | . . . Traps | -11 -10 -10 ------- Run | Yrd Mat Sub Traps Triggered 2 | . 2 . Indirectly . | . . . Trap Hack Attempts . | . . . Triggered . | . . . Disarmed . | . . . Reprogrammed . | . . . Reused . | . . . Traps Extracted . | . . . Installed . | . . . Triggered . | . . . Machines | -11 -10 -10 ---------- Run | Yrd Mat Sub Machines Disabled 1 | . 1 . Max in Single Turn 1 | . 1 . Machines Repaired . | . . . Machines Dismantled . | . . . Machines Sabotaged . | . . . Overloaded Fab Kills . | . . . Hacking | -11 -10 -10 --------- Run | Yrd Mat Sub Machines Accessed 2 | . 2 . Terminals 2 | . 2 . Fabricators . | . . . Repair Stations . | . . . Recycling Units . | . . . Scanalyzers . | . . . Garrison Access . | . . . Total Hacks 7 | . 7 . Successful 3 | . 3 . Failed 4 | . 4 . Catastrophic . | . . . Database Lockouts . | . . . Manual . | . . . Terminals 7 | . 7 . Fabricators . | . . . Repair Stations . | . . . Recycling Units . | . . . Scanalyzers . | . . . Garrison Access . | . . . Terminal Hacks 3 | . 3 . Record 1 | . 1 . Locate Traps 1 | . 1 . Zone Layout 1 | . 1 . Fabricator Hacks . | . . . Repair Station Hacks . | . . . Recycling Unit Hacks . | . . . Scanalyzer . | . . . Garrison Access Hacks . | . . . Unauthorized Hacks . | . . . Terminals . | . . . Fabricators . | . . . Repair Stations . | . . . Recycling Units . | . . . Scanalyzers . | . . . Garrison Access . | . . . Data Cores Recovered . | . . . Used . | . . . Hacking Detections 1 | . 1 . Full Trace Events . | . . . Feedback Events . | . . . Feedback Blocked . | . . . Robot Schematics Acquired . | . . . Robots Built . | . . . Authchips . | . . . Time . | . . . Total Robot Build Rating . | . . . Part Schematics Acquired . | . . . Parts Built . | . . . Authchips . | . . . Time . | . . . Total Part Build Rating . | . . . Part Studies Acquired . | . . . Parts Repaired . | . . . Time . | . . . Parts Recycled . | . . . Recycled Matter . | . . . Retrieved Matter . | . . . Retrieved Components . | . . . Parts Scanalyzed . | . . . Part Schematics Acquired . | . . . Parts Damaged . | . . . Bothacking | -11 -10 -10 ------------ Run | Yrd Mat Sub Used RIF Installer . | . . . Robots Hacked . | . . . Non-combat . | . . . Combat . | . . . Robot Hacks Applied . | . . . Relay Couplers Released . | . . . Fabnet Peak Effective % . | . . . Robots Rewired . | . . . Allies Hacked . | . . . Hacks Repelled . | . . . Allies | -11 -10 -10 -------- Run | Yrd Mat Sub Total Allies . | . . . Largest Group . | . . . Highest-Rated Group . | . . . Highest-Rated Ally . | . . . Total Orders . | . . . Ally Attacks . | . . . Total Damage . | . . . Kills . | . . . Allies Corrupted . | . . . Allies Melted . | . . . Intel | -11 -10 -10 ------- Run | Yrd Mat Sub Active Infowar (turns) . | . . . Robot Analysis Total . | . . . Derelict Logs Recovered 1 | . . 1 Drone Launches . | . . . Drone Recoveries . | . . . Exploration | -11 -10 -10 ------------- Run | Yrd Mat Sub Turns Passed 2826 | 82 1519 1225 Spaces Moved 829 | 49 411 369 Core 36 | 6 . 30 Treads 527 | 43 411 73 Legs . | . . . Wheels 266 | . . 266 Hover . | . . . Flight . | . . . Fastest Speed 50 | 50 160 130 Average Speed 307 | 146 318 315 Slowest Speed 1550 | 160 480 1550 Overloaded Moves . | . . . Propulsion Burnouts . | . . . Robots Hopped . | . . . Potential Cave-ins . | . . . Cave-ins Triggered . | . . . Exploration Rate (%) 27 | 4 54 24 Regions Visited 2 Branch Regions 1 Pre-discovered Areas . | . . . Known Exits Taken . | . . . Unknown Exits Taken 2 | 1 1 . Scrap Searched . | . . . Spaces Dug . | . . . Terrain Destroyed . | . . . Melee . | . . . Projectile . | . . . AOE . | . . . Terrain Rammed . | . . . Walls Destroyed . | . . . Machines Disabled . | . . . Actions | -11 -10 -10 --------- Run | Yrd Mat Sub Total 973 | 56 510 407 Wait 19 | . 10 9 Move 827 | 48 410 369 Hop . | . . . Pick Up 12 | 2 9 1 Fast Attach 13 | 6 5 2 Attach 3 | . 1 2 Detach 6 | . 3 3 Swap 2 | . 1 1 Drop 11 | . 7 4 Fire 80 | . 64 16 Melee . | . . . Ram . | . . . Kick . | . . . Crush . | . . . Escape Stasis . | . . . Rewire . | . . . Trap . | . . . Miscellaneous . | . . . Route ------- -11/Scrapyard -10/Materials (discovered 5 exits: [*Mat x2] / [*Min x2] / [*Sub]) -10/Subcaves (discovered 1 exit: [*Mat]) History --------- Turn | Location | Event 22 | -11/Scrapyard | Discovered new exit (range 16) 83 | -11/Scrapyard | Entered Materials 316 | -10/Materials | Build established: Mutant 391 | -10/Materials | Discovered new exit (range 16) 797 | -10/Materials | Discovered new exit (range 15) 911 | -10/Materials | Discovered new exit (range 15) 1484 | -10/Materials | Discovered new exit (range 15) 1573 | -10/Materials | Discovered new exit (range 6) 1602 | -10/Materials | Entered Subcaves 1880 | -10/Subcaves | Discovered new exit (range 8) 2459 | -10/Subcaves | Core integrity fell below 50% 2480 | -10/Subcaves | Learned 4 Materials zone layouts 2796 | -10/Subcaves | Core integrity fell below 20% 2827 | -10/Subcaves | Destroyed by OM-Y4H(R) with Subdweller Laser Last Messages --------------- 02224_ Dropped Broken Sub. Monowheel. 02229_ Acquired 2 matter. 02271_ Sub. Monowheel shoots sparks and powers down. 02273_ Dropped Broken Sub. Monowheel. 02375_ Subatomizers dissect the Broken Sub. Monowheel. 02450_ Lgt. Treads destroyed. 02455_ Destroyed Heat Sink. 02461_ Y-45 Defender destroyed. 02480_ Acquired derelict log, extracted data. Data stored: Materials zone layouts (x4). 02526_ Acquired 1 matter. 02542_ Acquired 6 matter. 02588_ Acquired 28 matter. 02619_ Acquired 4 matter. 02777_ Lgt. Ion Engine destroyed. 02789_ Lgt. Cannon destroyed. 02813_ Lgt. Ion Engine destroyed. 02821_ Cooling System destroyed. Map ----- +----------------------------------------------------+ | ?????????????????????????????????????????????????? | | ?????????????????????????????????????????????????? | | ?????????????????????????????????????????????????? | | ?????????????????????????????????????????????????? | | ?????????????????????????????????????????????????? | | ??????? ????????????????????????????????????????? | | ??????? ????????????????????????????????????????? | | ??????? ????????????????????????????????????????? | | ??????? ##??????????????????????????????????????? | | ??????? #??????????????????????????????????????? | | ##????? #?? ???????????????????????????????????? | | #????? ?? ##?????????????????????????????????? | | ##???? ## ?????????????????????????????????? | | #???## # ?????????????????????????????????? | | ##??# ? ?????????????????????????????????? | | #??? ### ??""??????"??????????????????????? | | ##?? ## ##"#??????"" ??????????????????? | | #?## #? ""##???##""""#??????????????????? | | ### #?? """#####""" #???????????????????? | | ## #??? """"""#???????????????????? | | ## #???# ## ""R"" ##??????????????????? | | # # ##### #?# #??????????????????? | | ### ## # # #?# ## "#?????????????????? | | #?## #?## #?????????????????????? | | ## # #?# ## ###### #?????????????????????? | | ######?# ###### # @#####??????????????????? | | #??????####??## #??????????????????? | | #???????????# #??????????????????? | | ##???????????# #??????????????????? | | #????????????## ########??????????????????? | | ??????????????##########?????????????????????????? | | ?????????????????????????????????????????????????? | | ?????????????????????????????????????????????????? | | ?????????????????????????????????????????????????? | | ?????????????????????????????????????????????????? | | ?????????????????????????????????????????????????? | | ?????????????????????????????????????????????????? | | ?????????????????????????????????????????????????? | | ?????????????????????????????????????????????????? | | ?????????????????????????????????????????????????? | | ?????????????????????????????????????????????????? | | ?????????????????????????????????????????????????? | | ?????????????????????????????????????????????????? | | ?????????????????????????????????????????????????? | | ?????????????????????????????????????????????????? | | | | | | | | | | | +----------------------------------------------------+ Best States ------------- Heat Dissipation 47 Energy Generation 14 Energy Capacity 160 Matter Stores 300 Matter Capacity 300 Sight Range 16 Terrain Scan Density 10 Evasion (%) 40 Recoil Reduction 2 Item Schematics ----------------- None Robot Schematics ------------------ None Fabricated ------------ Nothing Repaired ---------- Nothing Studied --------- None Alien Tech Used ----------------- None Achievements -------------- None Challenges ------------ None Game ------ Seed AntisysBraceProjector Manual? 0 Play Time 00:09:34 Cumulative 25.7 hours Start 2026.02.22 @ 14:28:14 End 2026.02.22 @ 14:35:26 Sessions 1 Manual Loads 0 Difficulty Rogue Special Mode None Game No. 70 Rogue 70 Adventurer 0 Explorer 0 Win Type - Total 0 Types 0/0/0/0/0/0/0/0/0/0 Lore% 17 Gallery% 25 Achievement% 20 Wizard Run 0 Options --------- Layout 1 ASCII 0 Keyboard 1 Movement Vi Keybinds 0 Fullscreen 1 Font 24/Smallcaps Map View 50x35 Zoom Use 0% Tactical HUD 1 Map Filters NONE Filters NONE Steam 1 RUN: 0d125cf5-eafc-4fda-b41d-7c507d2f287f